[Event "Czech Open-E Teams 2022"]
[Site "Pardubice"]
[Date "2022.07.15"]
[Round "2.11"]
[White "Chytilek, Roman"]
[Black "Kubat, Pavel"]
[Result "1/2-1/2"]
[ECO "A05"]
[WhiteElo "2317"]
[BlackElo "1881"]
[Annotator "ChessBase"]
[PlyCount "85"]
[EventDate "2022.07.14"]
[EventType "team-tourn"]
[EventCountry "CZE"]
[SourceTitle "playchess.com"]
[Source "ChessBase"]
[SourceQuality "1"]
[TimeControl "5400+30"]

1. Nf3 {[%emt 0:00:03]} Nf6 {[%emt 0:06:28]} 2. g3 {[%emt 0:00:57]} g6 {[%emt 0:02:05]} 3. c4 {[%emt 0:00:54]} Bg7 {[%emt 0:01:23]} 4. Bg2 {[%emt 0:00:11]} c5 {[%emt 0:00:56]} 5. O-O {[%emt 0:01:14]} O-O {[%emt 0:01:59]} 6. d4 {[%emt 0:01:12]} cxd4 {[%emt 0:12:49]} 7. Nxd4 {[%emt 0:00:19]} Nc6 {[%emt 0:00:19]} 8. Nc3 {[%emt 0:02:39]} Nxd4 {[%emt 0:19:03]} 9. Qxd4 {[%emt 0:02:52]} d6 {[%emt 0:00:11]} 10. Qd3 {[%emt 0:00:10]} Nd7 {[%emt 0:08:14]} 11. b3 {[%emt 0:17:51]} Nc5 {[%emt 0:04:23]} 12. Qd2 {[%emt 0:01:08]} Rb8 {[%emt 0:03:22]} 13. Bb2 {[%emt 0:02:46]} Bd7 {[%emt 0:04:50]} 14. b4 {[%emt 0:10:31]} Na6 {[%emt 0:05:23]} 15. a3 {[%emt 0:03:24]} Nc7 {[%emt 0:02:19]} 16. Rac1 {[%emt 0:02:40]} Bc6 {[%emt 0:03:33]} 17. e4 {[%emt 0:10:46]} b5 {[%emt 0:06:51]} 18. cxb5 {[%emt 0:06:31]} Nxb5 {[%emt 0:00:35]} 19. Ne2 {[%emt 0:00:16]} Bxb2 {[%emt 0:04:10]} 20. Qxb2 {[%emt 0:00:38]} Bd7 {[%emt 0:00:09]} 21. a4 {[%emt 0:08:35]} Nc7 {[%emt 0:00:27]} 22. Nc3 {[%emt 0:00:30]} Na6 {[%emt 0:02:16]} 23. b5 {[%emt 0:08:46]} Nc5 {[%emt 0:00:47]} 24. Rfd1 {[%emt 0:00:42]} Bg4 {[%emt 0:05:26]} 25. Rd4 {[%emt 0:02:35]} Be6 {[%emt 0:00:47]} 26. Nd5 {[%emt 0:05:12]} Bxd5 {[%emt 0:01:19]} 27. exd5 {[%emt 0:00:06]} a6 {[%emt 0:00:41]} 28. Rb1 {[%emt 0:01:20]} axb5 {[%emt 0:01:46]} 29. axb5 {[%emt 0:00:06]} Rb7 {[%emt 0:00:34]} 30. h4 {[%emt 0:03:26]} Qd7 {[%emt 0:01:28]} 31. h5 {[%emt 0:02:36]} Qf5 {[%emt 0:00:25]} 32. hxg6 {[%emt 0:00:50]} hxg6 {[%emt 0:00:51]} 33. Rh4 {[%emt 0:01:23]} Qf6 {[%emt 0:00:11]} 34. Qc1 {[%emt 0:01:48]} Nd3 {[%emt 0:00:38]} 35. Qe3 {[%emt 0:00:37]} Ne5 {[%emt 0:00:28]} 36. Rhb4 {[%emt 0:01:54]} Kg7 {[%emt 0:00:37]} 37. Rf4 {[%emt 0:00:51]} Qg5 {[%emt 0:00:00]} 38. Qc3 {[%emt 0:00:21]} f5 {[%emt 0:00:21]} 39. Ra4 {[%emt 0:00:39]} f4 {[%emt 0:00:26]} 40. gxf4 {[%emt 0:00:25]} Rxf4 {[%emt 0:00:06]} 41. Rxf4 {[%emt 0:00:06]} Qxf4 {[%emt 0:00:03]} 42. Qc8 {[%emt 0:00:32]} Qf5 {[%emt 0:02:11]} 43. Qxb7 {[%emt 0:00:54]} 1/2-1/2

[Event "Czech Open-E Teams 2022"]
[Site "Pardubice"]
[Date "2022.07.15"]
[Round "2.12"]
[White "Stankova, Zuzana"]
[Black "Vyskocil, Neklan"]
[Result "0-1"]
[ECO "B23"]
[WhiteElo "2075"]
[BlackElo "2286"]
[Annotator "ChessBase"]
[PlyCount "62"]
[EventDate "2022.07.14"]
[EventType "team-tourn"]
[EventCountry "CZE"]
[SourceTitle "playchess.com"]
[Source "ChessBase"]
[SourceQuality "1"]
[TimeControl "5400+30"]

1. e4 {[%emt 0:00:03]} c5 {[%emt 0:04:41]} 2. Nc3 {[%emt 0:00:18]} g6 {[%emt 0:00:53]} 3. f4 {[%emt 0:01:18]} Bg7 {[%emt 0:00:11]} 4. Nf3 {[%emt 0:00:19]} Nc6 {[%emt 0:01:11]} 5. Bb5 {[%emt 0:00:52]} Nd4 {[%emt 0:00:53]} 6. Bc4 {[%emt 0:00:34]} e6 {[%emt 0:00:50]} 7. O-O {[%emt 0:01:34]} Ne7 {[%emt 0:00:20]} 8. d3 {[%emt 0:00:58]} d5 {[%emt 0:02:13]} 9. Bb3 {[%emt 0:04:58]} O-O {[%emt 0:03:59]} 10. Bd2 {[%emt 0:15:04]} c4 {[%emt 0:04:05]} 11. dxc4 {[%emt 0:08:08]} dxc4 {[%emt 0:00:49]} 12. Bxc4 {[%emt 0:02:38]} Nxf3+ {[%emt 0:00:22]} 13. Rxf3 {[%emt 0:01:11]} Qd4+ {[%emt 0:00:09]} 14. Kh1 {[%emt 0:02:50]} Qxc4 {[%emt 0:00:08]} 15. Qe1 {[%emt 0:01:13]} f5 {[%emt 0:04:33]} 16. e5 {[%emt 0:06:47]} b6 {[%emt 0:02:27]} 17. Rd3 {[%emt 0:03:52]} Bb7 {[%emt 0:01:30]} 18. Rd6 {[%emt 0:01:15]} Rad8 {[%emt 0:04:15]} 19. b3 {[%emt 0:02:57]} Qc8 {[%emt 0:07:07]} 20. Rd1 {[%emt 0:03:46]} Rxd6 {[%emt 0:09:06]} 21. exd6 {[%emt 0:00:04]} Nd5 {[%emt 0:01:59]} 22. Nxd5 {[%emt 0:05:35]} exd5 {[%emt 0:01:15]} 23. Bb4 {[%emt 0:01:48]} Re8 {[%emt 0:01:49]} 24. Qd2 {[%emt 0:06:11]} Qd7 {[%emt 0:05:22]} 25. c4 {[%emt 0:10:52]} d4 {[%emt 0:03:25]} 26. c5 {[%emt 0:03:58]} bxc5 {[%emt 0:02:57]} 27. Bxc5 {[%emt 0:02:47]} Qc6 {[%emt 0:01:01]} 28. Rc1 {[%emt 0:02:40]} d3 {[%emt 0:03:57]} 29. Bxa7 {[%emt 0:08:21]} Qxd6 {[%emt 0:00:37]} 30. Be3 {[%emt 0:00:39]} Qd5 {[%emt 0:00:54]} 31. Re1 {[%emt 0:01:29]} Bc3 0-1

[Event "Czech Open-E Teams 2022"]
[Site "Pardubice"]
[Date "2022.07.15"]
[Round "2.13"]
[White "Slepov, Kyryl"]
[Black "Stalmach, Richard"]
[Result "0-1"]
[ECO "A10"]
[WhiteElo "2105"]
[BlackElo "2363"]
[Annotator "ChessBase"]
[PlyCount "64"]
[EventDate "2022.07.14"]
[EventType "team-tourn"]
[EventCountry "CZE"]
[SourceTitle "playchess.com"]
[Source "ChessBase"]
[SourceQuality "1"]
[TimeControl "5400+30"]

1. c4 {[%emt 0:00:06]} g6 {[%emt 0:00:24]} 2. g3 {[%emt 0:00:38]} Bg7 {[%emt 0:00:14]} 3. Bg2 {[%emt 0:00:30]} d6 {[%emt 0:00:42]} 4. Nc3 {[%emt 0:02:05]} c5 {[%emt 0:00:53]} 5. e3 {[%emt 0:00:50]} Nc6 {[%emt 0:02:50]} 6. Nge2 {[%emt 0:00:43]} Nf6 {[%emt 0:01:00]} 7. O-O {[%emt 0:04:05]} O-O {[%emt 0:00:27]} 8. d4 {[%emt 0:01:57]} Bd7 {[%emt 0:01:32]} 9. b3 {[%emt 0:01:56]} a6 {[%emt 0:01:25]} 10. Bb2 {[%emt 0:01:02]} Rb8 {[%emt 0:00:27]} 11. Qd2 {[%emt 0:10:43]} cxd4 {[%emt 0:07:43]} 12. exd4 {[%emt 0:03:40]} b5 {[%emt 0:00:27]} 13. c5 {[%emt 0:03:36]} b4 {[%emt 0:08:17]} 14. Na4 {[%emt 0:01:36]} Na7 {[%emt 0:02:38]} 15. Nb6 {[%emt 0:02:46]} Bb5 {[%emt 0:00:47]} 16. Rfd1 {[%emt 0:02:22]} Qc7 {[%emt 0:03:01]} 17. Nf4 {[%emt 0:01:51]} Nc6 {[%emt 0:07:39]} 18. Rac1 {[%emt 0:07:47]} Rfd8 {[%emt 0:02:30]} 19. Qe1 {[%emt 0:09:40]} Qa7 {[%emt 0:09:08]} 20. d5 {[%emt 0:05:08]} Na5 {[%emt 0:15:11]} 21. Qxb4 {[%emt 0:03:11]} Nb7 {[%emt 0:01:27]} 22. c6 {[%emt 0:07:08]} Nc5 {[%emt 0:00:46]} 23. Rxc5 {[%emt 0:06:48]} dxc5 {[%emt 0:01:26]} 24. Qxc5 {[%emt 0:01:37]} Bxc6 {[%emt 0:06:47]} 25. Na4 {[%emt 0:04:40]} Qxc5 {[%emt 0:01:20]} 26. Nxc5 {[%emt 0:00:09]} Nxd5 {[%emt 0:06:25]} 27. Nxd5 {[%emt 0:01:43]} Bxd5 {[%emt 0:00:50]} 28. Rxd5 {[%emt 0:03:40]} Rxd5 {[%emt 0:01:04]} 29. Bxd5 {[%emt 0:00:08]} Bxb2 {[%emt 0:00:04]} 30. Nxa6 {[%emt 0:01:09]} Rd8 {[%emt 0:00:04]} 31. Bc4 {[%emt 0:01:10]} Ba3 {[%emt 0:00:06]} 32. b4 {[%emt 0:03:21]} Rd4 {[%emt 0:00:23]} 0-1

[Event "Czech Open-E Teams 2022"]
[Site "Pardubice"]
[Date "2022.07.15"]
[Round "2.14"]
[White "Mica, Marek"]
[Black "Tovarek, Antonin"]
[Result "1-0"]
[ECO "E10"]
[WhiteElo "2304"]
[BlackElo "1990"]
[Annotator "ChessBase"]
[PlyCount "113"]
[EventDate "2022.07.14"]
[EventType "team-tourn"]
[EventCountry "CZE"]
[SourceTitle "playchess.com"]
[Source "ChessBase"]
[SourceQuality "1"]
[TimeControl "5400+30"]

1. d4 {[%emt 0:00:06]} Nf6 {[%emt 0:18:45]} 2. c4 {[%emt 0:00:12]} e6 {[%emt 0:00:28]} 3. Nf3 {[%emt 0:00:12]} d5 {[%emt 0:00:25]} 4. g3 {[%emt 0:00:13]} c5 {[%emt 0:01:27]} 5. cxd5 {[%emt 0:00:50]} Nxd5 {[%emt 0:01:11]} 6. Bg2 {[%emt 0:00:47]} cxd4 {[%emt 0:00:55]} 7. Nxd4 {[%emt 0:00:27]} Bc5 {[%emt 0:00:44]} 8. Nb3 {[%emt 0:03:09]} Bb6 {[%emt 0:00:27]} 9. Nc3 {[%emt 0:02:47]} Nxc3 {[%emt 0:00:52]} 10. Qxd8+ {[%emt 0:00:23]} Bxd8 {[%emt 0:00:02]} 11. bxc3 {[%emt 0:00:08]} Nc6 {[%emt 0:05:07]} 12. Rb1 {[%emt 0:03:10]} Na5 {[%emt 0:03:57]} 13. O-O {[%emt 0:04:57]} Nc4 {[%emt 0:06:04]} 14. Nc5 {[%emt 0:01:34]} Bb6 {[%emt 0:00:56]} 15. Nxb7 {[%emt 0:03:39]} Rb8 {[%emt 0:01:39]} 16. Rb4 {[%emt 0:02:07]} Bxb7 {[%emt 0:02:59]} 17. Bxb7 {[%emt 0:01:53]} Rxb7 {[%emt 0:00:01]} 18. Rxc4 {[%emt 0:00:21]} Ke7 {[%emt 0:02:58]} 19. Ba3+ {[%emt 0:00:58]} Kf6 {[%emt 0:00:30]} 20. Rd1 {[%emt 0:01:07]} Rd8 {[%emt 0:01:54]} 21. Rxd8 {[%emt 0:06:01]} Bxd8 {[%emt 0:00:01]} 22. Kg2 {[%emt 0:01:40]} Be7 {[%emt 0:01:22]} 23. Bb4 {[%emt 0:01:37]} Bxb4 {[%emt 0:05:04]} 24. cxb4 {[%emt 0:00:15]} Ke5 {[%emt 0:00:32]} 25. e4 {[%emt 0:01:38]} g5 {[%emt 0:04:31]} 26. Kf3 {[%emt 0:01:55]} f5 {[%emt 0:02:58]} 27. Ke3 {[%emt 0:02:16]} fxe4 {[%emt 0:04:09]} 28. Rc5+ {[%emt 0:00:52]} Kd6 {[%emt 0:00:16]} 29. a3 {[%emt 0:00:57]} h6 {[%emt 0:00:19]} 30. Kxe4 {[%emt 0:00:27]} Rf7 {[%emt 0:00:28]} 31. f3 {[%emt 0:00:23]} Rb7 {[%emt 0:01:20]} 32. Ra5 {[%emt 0:00:34]} Rd7 {[%emt 0:02:15]} 33. Ra6+ {[%emt 0:00:40]} Ke7 {[%emt 0:00:06]} 34. b5 {[%emt 0:00:18]} Rc7 {[%emt 0:01:13]} 35. a4 {[%emt 0:01:05]} Kf6 {[%emt 0:01:59]} 36. Rc6 {[%emt 0:00:30]} Rb7 {[%emt 0:02:26]} 37. f4 {[%emt 0:00:08]} gxf4 {[%emt 0:01:53]} 38. gxf4 {[%emt 0:00:14]} Rg7 {[%emt 0:00:06]} 39. Ra6 {[%emt 0:00:33]} h5 {[%emt 0:00:53]} 40. h4 {[%emt 0:00:30]} Rc7 {[%emt 0:01:48]} 41. f5 {[%emt 0:01:54]} Rc4+ {[%emt 0:00:36]} 42. Kd3 {[%emt 0:00:22]} Rxh4 {[%emt 0:00:34]} 43. fxe6 {[%emt 0:00:16]} Rb4 {[%emt 0:01:51]} 44. Rxa7 {[%emt 0:01:20]} Kxe6 {[%emt 0:00:16]} 45. Kc3 {[%emt 0:00:09]} Rg4 {[%emt 0:02:24]} 46. b6 {[%emt 0:00:40]} Kd6 {[%emt 0:01:08]} 47. a5 {[%emt 0:00:20]} h4 {[%emt 0:01:09]} 48. b7 {[%emt 0:01:28]} Kc7 {[%emt 0:00:47]} 49. a6 {[%emt 0:00:16]} Rg8 {[%emt 0:00:37]} 50. Ra8 {[%emt 0:00:05]} Rb8 {[%emt 0:00:10]} 51. Kd4 {[%emt 0:00:46]} h3 {[%emt 0:00:34]} 52. Kc5 {[%emt 0:02:03]} h2 {[%emt 0:00:10]} 53. Rxb8 {[%emt 0:00:14]} h1=Q {[%emt 0:01:56]} 54. Rc8+ {[%emt 0:00:12]} Kd7 {[%emt 0:00:11]} 55. b8=Q {[%emt 0:00:13]} Qc1+ {[%emt 0:00:21]} 56. Kb6 {[%emt 0:00:10]} Qxc8 {[%emt 0:00:51]} 57. Qxc8+ {[%emt 0:00:10]} 1-0

[Event "Czech Open-E Teams 2022"]
[Site "Pardubice"]
[Date "2022.07.15"]
[Round "2.15"]
[White "Tioka, Zdenek"]
[Black "Frank, Adam"]
[Result "1/2-1/2"]
[ECO "B03"]
[WhiteElo "1949"]
[BlackElo "2313"]
[Annotator "ChessBase"]
[PlyCount "51"]
[EventDate "2022.07.14"]
[EventType "team-tourn"]
[EventCountry "CZE"]
[SourceTitle "playchess.com"]
[Source "ChessBase"]
[SourceQuality "1"]
[TimeControl "5400+30"]

1. e4 {[%emt 0:01:10]} Nf6 {[%emt 0:00:05]} 2. e5 {[%emt 0:00:39]} Nd5 {[%emt 0:00:05]} 3. d4 {[%emt 0:00:07]} d6 {[%emt 0:00:03]} 4. c4 {[%emt 0:00:04]} Nb6 {[%emt 0:00:03]} 5. exd6 {[%emt 0:00:11]} cxd6 {[%emt 0:00:04]} 6. Be3 {[%emt 0:00:11]} g6 {[%emt 0:00:04]} 7. Nc3 {[%emt 0:00:15]} Bg7 {[%emt 0:00:04]} 8. Nf3 {[%emt 0:00:24]} Bg4 {[%emt 0:00:33]} 9. b3 {[%emt 0:00:21]} O-O {[%emt 0:00:10]} 10. Be2 {[%emt 0:00:11]} Nc6 {[%emt 0:00:11]} 11. h3 {[%emt 0:00:19]} Bxf3 {[%emt 0:00:08]} 12. Bxf3 {[%emt 0:00:11]} e6 {[%emt 0:06:41]} 13. O-O {[%emt 0:01:03]} d5 {[%emt 0:00:04]} 14. cxd5 {[%emt 0:01:31]} exd5 {[%emt 0:00:50]} 15. Qd2 {[%emt 0:00:44]} Qd7 {[%emt 0:04:46]} 16. Rac1 {[%emt 0:05:51]} Rad8 {[%emt 0:03:54]} 17. Kh2 {[%emt 0:02:35]} h5 {[%emt 0:02:34]} 18. g3 {[%emt 0:01:12]} Rfe8 {[%emt 0:02:52]} 19. Rfe1 {[%emt 0:03:21]} Qf5 {[%emt 0:14:06]} 20. Bg2 {[%emt 0:01:01]} Nc8 {[%emt 0:00:06]} 21. h4 {[%emt 0:00:34]} N8e7 {[%emt 0:02:05]} 22. Bh3 {[%emt 0:10:23]} Qf3 {[%emt 0:13:48]} 23. Nb5 {[%emt 0:04:14]} Nf5 {[%emt 0:02:19]} 24. Bg2 {[%emt 0:00:55]} Qg4 {[%emt 0:00:08]} 25. Bh3 {[%emt 0:00:24]} Qf3 {[%emt 0:00:09]} 26. Bg2 1/2-1/2

[Event "Czech Open-E Teams 2022"]
[Site "Pardubice"]
[Date "2022.07.15"]
[Round "2.16"]
[White "Gnojek, Petr"]
[Black "Sipek, Oldrich"]
[Result "1-0"]
[ECO "D43"]
[WhiteElo "2295"]
[BlackElo "1935"]
[Annotator "ChessBase"]
[PlyCount "70"]
[EventDate "2022.07.14"]
[EventType "team-tourn"]
[EventCountry "CZE"]
[SourceTitle "playchess.com"]
[Source "ChessBase"]
[SourceQuality "1"]
[TimeControl "5400+30"]

1. d4 d5 2. c4 e6 3. Nf3 Nf6 4. Nc3 c6 5. Bg5 Nbd7 6. cxd5 exd5 7. e3 Qa5 8. Nd2 Bb4 9. Qc2 O-O 10. Bd3 Re8 11. O-O Bxc3 12. Qxc3 Qxc3 13. bxc3 Ne4 14. Nxe4 dxe4 15. Be2 Nb6 16. c4 Be6 17. Rfc1 h6 18. Bf4 Rac8 19. Rab1 Re7 20. f3 exf3 21. gxf3 Bf5 22. Rb3 Rce8 23. Kf2 Nc8 24. e4 Be6 25. Bd3 b5 26. Rb2 a6 27. cxb5 cxb5 28. d5 Bd7 29. Rbc2 f6 30. Rc7 g5 31. Be3 Rd8 32. Bd4 Rf7 33. Rb7 Ne7 34. Bb6 Bc8 35. Rxe7 Bd7 1-0

[Event "Czech Open-E Teams 2022"]
[Site "Pardubice"]
[Date "2022.07.15"]
[Round "2.17"]
[White "Svoboda, Vaclav"]
[Black "Hlavina, Matous"]
[Result "1-0"]
[ECO "A15"]
[WhiteElo "2397"]
[BlackElo "2133"]
[Annotator "ChessBase"]
[PlyCount "85"]
[EventDate "2022.07.14"]
[EventType "team-tourn"]
[EventCountry "CZE"]
[SourceTitle "playchess.com"]
[Source "ChessBase"]
[SourceQuality "1"]
[TimeControl "5400+30"]

1. c4 Nf6 2. Nf3 g6 3. Nc3 d5 4. cxd5 Nxd5 5. d3 Bg7 6. Bd2 Nb6 7. g3 Nc6 8. Bg2 O-O 9. Qc1 e5 10. Bg5 f6 11. Be3 Be6 12. O-O Nd5 13. Bc5 Nxc3 14. bxc3 Re8 15. Rd1 Bd5 16. e4 Bf7 17. d4 Qc8 18. Qc2 Bf8 19. Bxf8 Rxf8 20. d5 Na5 21. c4 c5 22. Ne1 Qc7 23. Nd3 b6 24. f4 Nb7 25. Qc3 Rae8 26. Re1 Qe7 27. a4 Qc7 28. Ra2 Re7 29. Rf2 Be8 30. Ref1 Rff7 31. a5 Nd6 32. axb6 axb6 33. Rb2 b5 34. fxe5 fxe5 35. Rxf7 Rxf7 36. cxb5 Nxb5 37. Qxe5 Qxe5 38. Nxe5 Re7 39. Nc4 Nc3 40. Nd6 c4 41. Rb8 Kf8 42. Rc8 Nd1 43. Nxc4 1-0

[Event "Czech Open-E Teams 2022"]
[Site "Pardubice"]
[Date "2022.07.15"]
[Round "2.18"]
[White "Ocelak, Jakub"]
[Black "Vyprachticky, David"]
[Result "1-0"]
[ECO "A45"]
[WhiteElo "2120"]
[BlackElo "2302"]
[Annotator "ChessBase"]
[PlyCount "65"]
[EventDate "2022.07.14"]
[EventType "team-tourn"]
[EventCountry "CZE"]
[SourceTitle "playchess.com"]
[Source "ChessBase"]
[SourceQuality "1"]
[TimeControl "5400+30"]

1. d4 {[%emt 0:03:29]} Nf6 {[%emt 0:00:10]} 2. Nc3 {[%emt 0:00:04]} d5 {[%emt 0:00:50]} 3. Bf4 {[%emt 0:00:03]} c5 {[%emt 0:02:59]} 4. e4 {[%emt 0:00:07]} dxe4 {[%emt 0:06:55]} 5. dxc5 {[%emt 0:00:02]} Qxd1+ {[%emt 0:09:31]} 6. Rxd1 {[%emt 0:00:08]} a6 {[%emt 0:04:38]} 7. Nge2 {[%emt 0:23:21]} Bf5 {[%emt 0:02:33]} 8. Ng3 {[%emt 0:02:02]} Bg6 {[%emt 0:02:16]} 9. b4 {[%emt 0:07:48]} e6 {[%emt 0:05:41]} 10. a3 {[%emt 0:06:45]} Be7 {[%emt 0:04:12]} 11. Be2 {[%emt 0:02:55]} O-O {[%emt 0:01:30]} 12. O-O {[%emt 0:01:39]} Nc6 {[%emt 0:00:52]} 13. Bg5 {[%emt 0:11:55]} Rfd8 {[%emt 0:02:16]} 14. Bxf6 {[%emt 0:03:00]} Bxf6 {[%emt 0:05:32]} 15. Ncxe4 {[%emt 0:00:07]} Bb2 {[%emt 0:03:13]} 16. c3 {[%emt 0:10:13]} f5 {[%emt 0:05:09]} 17. Nd6 {[%emt 0:00:27]} Bxc3 {[%emt 0:00:42]} 18. Bc4 {[%emt 0:01:54]} f4 {[%emt 0:04:48]} 19. Ne2 {[%emt 0:05:29]} Rxd6 {[%emt 0:07:17]} 20. cxd6 {[%emt 0:04:36]} Be5 {[%emt 0:00:36]} 21. Bxe6+ {[%emt 0:01:20]} Kf8 {[%emt 0:00:16]} 22. Rfe1 {[%emt 0:03:06]} Rd8 {[%emt 0:00:32]} 23. d7 {[%emt 0:00:36]} Bf7 {[%emt 0:01:06]} 24. Bxf7 {[%emt 0:00:43]} Kxf7 {[%emt 0:00:05]} 25. Nc1 {[%emt 0:00:41]} Bd4 {[%emt 0:01:41]} 26. Nb3 {[%emt 0:01:06]} Rxd7 {[%emt 0:00:37]} 27. Kf1 {[%emt 0:01:36]} Rd8 {[%emt 0:00:53]} 28. Nxd4 {[%emt 0:00:18]} Rxd4 {[%emt 0:00:07]} 29. Rxd4 {[%emt 0:00:22]} Nxd4 {[%emt 0:00:06]} 30. Rd1 {[%emt 0:00:37]} Nb5 {[%emt 0:00:10]} 31. Rd7+ {[%emt 0:00:45]} Kf8 {[%emt 0:00:06]} 32. a4 {[%emt 0:00:19]} Nc3 {[%emt 0:00:06]} 33. a5 {[%emt 0:00:09]} 1-0

[Event "Czech Open-E Teams 2022"]
[Site "Pardubice"]
[Date "2022.07.15"]
[Round "2.19"]
[White "Vedral, Oldrich"]
[Black "Bezdek, Tomas"]
[Result "1-0"]
[ECO "C10"]
[WhiteElo "2268"]
[BlackElo "2061"]
[Annotator "ChessBase"]
[PlyCount "61"]
[EventDate "2022.07.14"]
[EventType "team-tourn"]
[EventCountry "CZE"]
[SourceTitle "playchess.com"]
[Source "ChessBase"]
[SourceQuality "1"]
[TimeControl "5400+30"]

1. e4 {[%emt 0:00:05]} e6 {[%emt 0:03:02]} 2. d4 {[%emt 0:00:15]} d5 {[%emt 0:00:06]} 3. Nc3 {[%emt 0:02:29]} Nc6 {[%emt 0:00:57]} 4. Nf3 {[%emt 0:02:20]} Bb4 {[%emt 0:01:52]} 5. e5 {[%emt 0:01:43]} f6 {[%emt 0:02:47]} 6. a3 {[%emt 0:02:17]} Ba5 {[%emt 0:05:51]} 7. Bd3 {[%emt 0:11:45]} fxe5 {[%emt 0:04:59]} 8. Nxe5 {[%emt 0:00:23]} Nxe5 {[%emt 0:04:11]} 9. dxe5 {[%emt 0:00:14]} Qh4 {[%emt 0:07:09]} 10. O-O {[%emt 0:03:17]} Nh6 {[%emt 0:03:08]} 11. g3 {[%emt 0:10:08]} Qh3 {[%emt 0:13:49]} 12. Be2 {[%emt 0:00:25]} O-O {[%emt 0:01:06]} 13. Nxd5 {[%emt 0:04:58]} exd5 {[%emt 0:03:36]} 14. Qxd5+ {[%emt 0:00:16]} Be6 {[%emt 0:06:34]} 15. Qxa5 {[%emt 0:00:19]} Ng4 {[%emt 0:05:25]} 16. Bxg4 {[%emt 0:00:06]} Bxg4 {[%emt 0:00:01]} 17. f4 {[%emt 0:02:44]} Rad8 {[%emt 0:03:05]} 18. Be3 {[%emt 0:04:55]} h5 {[%emt 0:01:06]} 19. Qe1 {[%emt 0:05:23]} Bf5 {[%emt 0:04:37]} 20. Qe2 {[%emt 0:08:08]} Rfe8 {[%emt 0:01:55]} 21. Rad1 {[%emt 0:08:43]} Rxd1 {[%emt 0:02:15]} 22. Rxd1 {[%emt 0:00:25]} Re6 {[%emt 0:00:42]} 23. Rd8+ {[%emt 0:05:13]} Kh7 {[%emt 0:00:34]} 24. Bf2 {[%emt 0:03:44]} h4 {[%emt 0:11:43]} 25. Rf8 {[%emt 0:11:05]} hxg3 {[%emt 0:01:20]} 26. Bxg3 {[%emt 0:00:24]} Rc6 {[%emt 0:00:41]} 27. c3 {[%emt 0:00:38]} Rg6 {[%emt 0:01:10]} 28. Qg2 {[%emt 0:01:22]} Qg4 {[%emt 0:00:32]} 29. Qd5 {[%emt 0:00:18]} Rb6 {[%emt 0:03:16]} 30. Qd8 {[%emt 0:01:42]} Rxb2 {[%emt 0:01:27]} 31. Rh8+ {[%emt 0:00:08]} 1-0

[Event "Czech Open-E Teams 2022"]
[Site "Pardubice"]
[Date "2022.07.15"]
[Round "2.20"]
[White "Le, Anh Dung"]
[Black "Cuhra, Martin"]
[Result "1/2-1/2"]
[ECO "B27"]
[WhiteElo "1975"]
[BlackElo "2225"]
[Annotator "ChessBase"]
[PlyCount "67"]
[EventDate "2022.07.14"]
[EventType "team-tourn"]
[EventCountry "CZE"]
[SourceTitle "playchess.com"]
[Source "ChessBase"]
[SourceQuality "1"]
[TimeControl "5400+30"]

1. e4 {[%emt 0:03:38]} c5 {[%emt 0:00:06]} 2. Nf3 {[%emt 0:00:07]} g6 {[%emt 0:00:04]} 3. Bc4 {[%emt 0:00:43]} Bg7 {[%emt 0:01:04]} 4. c3 {[%emt 0:08:49]} d6 {[%emt 0:03:03]} 5. d4 {[%emt 0:03:53]} cxd4 {[%emt 0:03:55]} 6. cxd4 {[%emt 0:02:31]} Nf6 {[%emt 0:03:12]} 7. Nc3 {[%emt 0:02:17]} O-O {[%emt 0:05:45]} 8. Bb3 {[%emt 0:01:53]} Bg4 {[%emt 0:02:33]} 9. h3 {[%emt 0:25:15]} Bxf3 {[%emt 0:01:50]} 10. Qxf3 {[%emt 0:00:09]} Nc6 {[%emt 0:00:26]} 11. Be3 {[%emt 0:01:11]} Nd7 {[%emt 0:02:14]} 12. Rd1 {[%emt 0:02:02]} Na5 {[%emt 0:05:41]} 13. O-O {[%emt 0:08:44]} Nxb3 {[%emt 0:05:15]} 14. axb3 {[%emt 0:00:03]} Rc8 {[%emt 0:02:02]} 15. Qe2 {[%emt 0:05:32]} Nb6 {[%emt 0:05:33]} 16. f4 {[%emt 0:10:37]} d5 {[%emt 0:01:40]} 17. e5 {[%emt 0:02:08]} f6 {[%emt 0:04:36]} 18. exf6 {[%emt 0:00:37]} exf6 {[%emt 0:00:30]} 19. f5 {[%emt 0:01:14]} Qd7 {[%emt 0:02:15]} 20. Qd3 {[%emt 0:02:47]} Rce8 {[%emt 0:01:34]} 21. Bd2 {[%emt 0:04:18]} Kf7 {[%emt 0:04:17]} 22. Ra1 {[%emt 0:03:03]} a6 {[%emt 0:01:30]} 23. Ra5 {[%emt 0:01:12]} Rc8 {[%emt 0:06:37]} 24. g4 {[%emt 0:01:51]} Rc6 {[%emt 0:03:09]} 25. Qf3 {[%emt 0:03:41]} Rd8 {[%emt 0:01:41]} 26. Qg3 {[%emt 0:00:55]} g5 {[%emt 0:05:42]} 27. Re1 {[%emt 0:00:48]} Bf8 {[%emt 0:02:17]} 28. Raa1 {[%emt 0:01:41]} Bd6 {[%emt 0:06:57]} 29. Qf3 {[%emt 0:00:16]} Bb4 {[%emt 0:03:35]} 30. Re2 {[%emt 0:00:59]} Re8 {[%emt 0:01:44]} 31. Rxe8 {[%emt 0:00:36]} Qxe8 {[%emt 0:00:10]} 32. Re1 {[%emt 0:00:37]} Qd7 {[%emt 0:00:38]} 33. Re3 Rc8 34. Re6 1/2-1/2